bitfinex/quotes_SOLUSD_20251024
["timestamp","ask_amount","ask_price","bid_price","bid_amount"]
[1761316557489,66.28456821,190.49,190.44,5.35098256]
[1761316557990,0.68,190.48,190.44,5.35098256]
[1761316558808,61.04,190.49,190.45,5.24456821]
[1761316559003,61.04,190.49,190.44,23.72304499]
[1761316559203,0.68,190.48,190.44,5.35098256]
[1761316559406,5.24456821,190.47,190.44,0.1]
[1761316559620,5.24456821,190.46,190.44,0.1]
[1761316559821,0.68,190.45,190.44,0.1]
[1761316560202,38.84,190.45,190.44,0.1]
[1761316560833,38.16,190.45,190.44,0.1]
[1761316562132,38.16,190.45,190.44,5.35099768]
[1761316562336,0.68,190.47,190.44,5.35099768]
[1761316562494,0.68,190.52,190.45,0.68]
[1761316562694,38.16,190.49,190.44,23.72306011]
[1761316562921,38.16,190.49,190.45,5.24456821]
[1761316563121,38.16,190.49,190.46,5.24456821]
[1761316563619,38.84,190.49,190.44,18.4784919]
[1761316563834,38.16,190.49,190.45,5.24456821]
[1761316564632,38.16,190.49,190.46,10.49501449]
[1761316565038,38.84,190.49,190.46,5.25044628]
[1761316565200,38.16,190.49,190.46,5.25044628]
[1761316565600,38.84,190.49,190.45,10.49529018]
[1761316565894,5.24456821,190.46,190.44,0.1]
[1761316566240,44.08456821,190.45,190.44,0.1]
[1761316566730,38.16,190.45,190.44,0.1]
[1761316566940,38.84,190.45,190.44,0.1]
[1761316567101,38.16,190.45,190.44,0.1]
[1761316567307,43.40456821,190.45,190.44,0.1]
[1761316567600,49.33529018,190.45,190.44,0.1]
[1761316568312,44.08456821,190.45,190.44,0.1]
[1761316568544,49.33529018,190.45,190.44,0.1]
[1761316568735,5.92456821,190.45,190.44,0.1]
[1761316569054,38.84,190.45,190.44,0.1]
[1761316569256,38.16,190.45,190.44,0.1]
[1761316569624,5.24456821,190.47,190.44,0.1]
[1761316569835,0.68,190.46,190.44,0.1]
[1761316570029,38.16,190.45,190.44,0.1]
[1761316570524,38.84,190.45,190.44,0.1]
[1761316571661,38.16,190.45,190.44,0.1]
[1761316571955,38.84,190.45,190.44,0.1]
[1761316572524,38.84,190.45,190.41,0.1]
[1761316572525,22.88,190.42,190.41,0.1]
[1761316572746,66.28456821,190.42,190.41,0.1]
[1761316573043,66.96456821,190.42,190.41,0.1]
[1761316573250,23.56,190.42,190.41,0.1]
[1761316573449,61.04,190.42,190.41,0.1]
[1761316573642,38.16,190.42,190.41,0.1]
[1761316574853,44.08456821,190.42,190.41,0.1]
[1761316575247,54.96104342,190.42,190.35,0.1]
[1761316575447,5.24456821,190.37,190.35,0.1]
[1761316575754,38.16,190.37,190.35,0.1]
[1761316576349,38.84,190.37,190.35,0.1]
[1761316576554,0.68,190.41,190.35,5.35334536]
[1761316576734,44.08456821,190.4,190.35,0.1]
[1761316577254,0.68,190.39,190.35,0.1]
[1761316577564,38.14,190.38,190.35,0.1]
[1761316578336,43.39268133,190.38,190.35,0.1]
[1761316579054,38.14,190.38,190.35,0.1]
[1761316579233,38.14,190.38,190.35,0.78]
[1761316579439,0.7,190.46,190.37,7.99851248]
[1761316579778,38.14,190.45,190.4,13.25038212]
[1761316580135,38.84,190.45,190.41,7.99851248]
[1761316580330,4.11372608,190.52,190.44,7.99851248]
[1761316580331,0.7,190.52,190.44,7.99851248]
[1761316580643,0.7,190.52,190.41,0.69]
[1761316580644,38.14,190.51,190.45,8.68851248]
[1761316580951,38.14,190.51,190.45,7.99851248]
[1761316580952,38.84,190.51,190.45,7.99851248]
[1761316581156,38.14,190.51,190.41,10.87647521]
[1761316581361,8.69851248,190.54,190.47,7.99851248]
[1761316581545,61.02,190.53,190.47,7.99851248]
[1761316581860,8.69851248,190.58,190.51,13.24739804]
[1761316582158,7.99851248,190.52,190.42,0.69]
[1761316582457,38.14,190.51,190.42,23.57]
[1761316582649,38.14,190.51,190.46,7.99851248]
[1761316583160,38.84,190.51,190.46,7.99851248]
[1761316583348,38.14,190.51,190.47,5.25017063]
[1761316583558,38.14,190.51,190.47,13.93868311]
[1761316583741,23.58,190.54,190.48,7.99851248]
[1761316583941,38.14,190.53,190.48,7.99851248]
[1761316584144,38.14,190.53,190.49,7.99851248]
[1761316584368,38.14,190.53,190.5,7.99851248]
[1761316584547,10.87647521,190.6,190.52,7.99851248]
[1761316584548,38.14,190.55,190.52,7.99851248]
[1761316584864,38.14,190.55,190.5,0.69]
[1761316584865,38.14,190.55,190.5,8.68851248]
[1761316585265,38.14,190.55,190.47,13.12542657]
[1761316585448,8.69851248,190.54,190.48,26.37314498]
[1761316585653,38.14,190.53,190.48,26.37314498]
[1761316586159,38.14,190.53,190.49,0.69]
[1761316586344,38.14,190.53,190.49,8.68851248]
[1761316587251,38.14,190.53,190.51,5.24906829]
[1761316587449,30.87851248,190.58,190.51,13.24758077]
[1761316587637,38.14,190.57,190.51,13.93758077]
[1761316588060,38.14,190.57,190.51,27.06025149]
[1761316589166,38.14,190.57,190.51,19.06173901]
[1761316589350,38.14,190.57,190.54,5.24824183]
[1761316589663,38.14,190.57,190.52,13.24730525]
[1761316589664,38.84,190.57,190.52,13.24730525]
[1761316589864,46.83851248,190.57,190.52,5.24879277]
[1761316590068,0.7,190.56,190.52,5.24879277]
[1761316590267,7.99851248,190.53,190.45,8.68851248]
[1761316590471,7.99851248,190.5,190.46,5.25044628]
[1761316590670,7.99851248,190.47,190.38,0.69]
[1761316590849,7.99851248,190.44,190.38,0.69]
[1761316591040,7.99851248,190.45,190.38,8.68851248]
[1761316591246,7.99851248,190.45,190.39,5.2523767]
[1761316591657,7.99851248,190.45,190.38,8.68851248]
[1761316591966,7.99851248,190.42,190.38,5.25263908]
[1761316592273,46.11851248,190.42,190.36,5.25307417]
[1761316592468,38.12,190.42,190.36,5.25307417]
[1761316592768,46.11851248,190.42,190.36,13.25158665]
[1761316592952,46.11851248,190.42,190.36,5.25307417]
[1761316593152,46.11851248,190.42,190.36,13.25158665]
[1761316593347,46.11851248,190.42,190.36,5.25307417]
[1761316593550,38.12,190.42,190.37,7.99851248]
[1761316593754,38.12,190.42,190.38,7.99851248]
[1761316594060,38.12,190.42,190.37,8.68851248]
[1761316594369,38.12,190.42,190.38,7.99851248]
[1761316594977,38.12,190.42,190.39,0.69]
[1761316595176,38.12,190.42,190.39,8.68851248]
[1761316595375,38.12,190.42,190.4,5.25210084]
[1761316595678,5.94944436,190.5,190.41,7.99851248]
[1761316595885,46.11851248,190.49,190.4,18.38235294]
[1761316596051,7.99851248,190.47,190.4,26.38086542]
[1761316596454,7.99851248,190.48,190.41,8.68851248]
[1761316596850,8.69851248,190.48,190.41,8.68851248]
[1761316597376,8.69851248,190.48,190.42,13.25006168]
[1761316597679,0.7,190.48,190.42,13.25006168]
[1761316597861,0.7,190.48,190.42,26.37893469]
[1761316598283,68.99851248,190.49,190.43,7.99851248]
[1761316598693,22.88,190.49,190.45,7.99851248]
[1761316599016,103.3,190.52,190.47,7.99851248]
[1761316599175,103.3,190.52,190.44,0.69]
[1761316599176,38.82,190.51,190.44,0.69]
[1761316599376,38.82,190.51,190.45,13.24923445]
[1761316599606,38.12,190.51,190.46,7.99851248]
[1761316600112,38.12,190.51,190.48,7.99851248]
[1761316600283,38.12,190.51,190.47,8.68851248]
[1761316600789,38.12,190.51,190.47,0.69]
[1761316600984,38.12,190.51,190.47,8.68851248]
[1761316601378,38.12,190.51,190.45,5.25072197]
[1761316601586,0.7,190.5,190.45,5.25072197]
[1761316602197,103.3,190.52,190.46,8.68851248]
[1761316602409,38.1,190.51,190.48,7.99851248]
[1761316602608,38.1,190.51,190.49,7.99851248]
[1761316603001,103.3,190.57,190.5,8.68851248]
[1761316603205,38.1,190.56,190.5,8.68851248]
[1761316603402,7.99851248,190.55,190.51,5.24906829]
[1761316603607,8.69851248,190.55,190.51,5.24906829]
[1761316603803,0.7,190.55,190.51,5.24906829]
[1761316604291,8.69851248,190.55,190.51,5.24906829]
[1761316604487,0.7,190.55,190.51,5.24906829]
[1761316604720,46.09851248,190.56,190.51,5.24906829]
[1761316604923,46.09851248,190.56,190.51,5.93906829]
[1761316605308,46.79851248,190.56,190.51,5.93906829]
[1761316605502,46.79851248,190.56,190.51,5.24906829]
[1761316606533,8.69851248,190.55,190.51,5.24906829]
[1761316606707,8.69851248,190.55,190.5,5.24934383]
[1761316607034,0.7,190.55,190.5,5.24934383]
[1761316607224,126.18,190.57,190.53,7.99851248]
[1761316607424,38.1,190.56,190.53,7.99851248]
[1761316607737,38.1,190.56,190.54,7.99851248]
[1761316607937,38.1,190.56,190.53,0.69]
[1761316608101,38.1,190.56,190.53,8.68851248]
[1761316608300,38.1,190.56,190.54,7.99851248]
[1761316608557,103.3,190.57,190.54,8.68851248]
[1761316608730,40.19851248,190.61,190.56,7.99851248]
[1761316608731,103.3,190.61,190.56,7.99851248]
[1761316609026,111.29851248,190.61,190.57,5.24741564]
[1761316609325,141.4,190.61,190.57,5.24741564]
[1761316609512,0.69,190.6,190.57,5.24741564]
[1761316609712,150.08851248,190.61,190.57,5.24741564]
[1761316609922,150.08851248,190.61,190.56,5.24764771]
[1761316610719,150.08851248,190.61,190.55,5.24794175]
[1761316611830,155.33483609,190.61,190.55,5.24794175]
[1761316612032,150.08851248,190.61,190.55,5.24794175]
[1761316612334,150.08851248,190.61,190.55,13.24645423]
[1761316612841,142.09,190.61,190.56,7.99851248]
[1761316613019,142.09,190.61,190.55,5.24794175]
[1761316613020,149.39851248,190.61,190.55,5.24794175]
[1761316613224,0.69,190.6,190.55,5.24794175]
[1761316613427,0.69,190.6,190.55,13.24645423]
[1761316613626,0.69,190.6,190.55,13.96645423]
[1761316613944,0.69,190.6,190.49,11.59647521]
[1761316614117,7.99851248,190.54,190.5,5.24934383]
[1761316614323,46.07851248,190.54,190.5,5.24934383]
[1761316614645,46.76851248,190.54,190.5,5.24934383]
[1761316615310,46.76851248,190.54,190.49,5.2496194]
[1761316616715,38.08,190.54,190.49,27.09218038]
[1761316616915,38.08,190.54,190.49,27.04218038]
[1761316617531,38.08,190.54,190.49,8.66851248]
[1761316617729,46.75851248,190.54,190.48,7.99851248]
[1761316617925,38.08,190.54,190.49,8.66851248]
[1761316618142,38.08,190.54,190.5,7.99851248]
[1761316618530,38.08,190.54,190.49,8.66851248]
[1761316619239,38.76,190.54,190.49,0.67]
[1761316619549,38.76,190.54,190.5,5.24934383]
[1761316620055,38.08,190.54,190.5,5.24934383]
[1761316620530,38.76,190.54,190.5,5.24934383]
[1761316620715,0.68,190.53,190.5,5.24934383]
[1761316621329,8.67851248,190.53,190.49,5.2496129]
[1761316621524,13.24785631,190.5,190.43,5.25127343]
[1761316621747,7.99851248,190.47,190.4,7.99851248]
[1761316621949,46.73851248,190.46,190.39,13.25088918]
[1761316622151,46.73851248,190.46,190.38,13.25114891]
[1761316622468,0.68,190.45,190.35,0.1]
[1761316622622,7.99851248,190.36,190.35,0.1]
[1761316622816,30.87851248,190.33,190.26,7.99851248]
[1761316623023,38.06,190.32,190.28,7.99851248]
[1761316623217,38.06,190.31,190.24,19.16780762]
[1761316623523,38.06,190.31,190.28,5.25541307]
[1761316623722,38.06,190.31,190.28,7.99851248]
[1761316624127,38.06,190.31,190.27,13.25409495]
[1761316624350,38.06,190.31,190.27,5.25558247]
[1761316624646,38.06,190.31,190.27,13.25409495]
[1761316624857,8.67851248,190.3,190.24,0.1]
[1761316625039,0.68,190.29,190.24,5.35651769]
[1761316625225,38.06,190.28,190.24,0.1]
[1761316625640,8.67851248,190.3,190.24,6.02631478]
[1761316625841,22.88,190.31,190.24,6.02631478]
[1761316626047,38.06,190.29,190.26,7.99851248]
[1761316626245,38.06,190.29,190.24,14.02482726]
[1761316626441,31.55851248,190.31,190.24,14.02482726]
[1761316626644,38.08,190.29,190.24,0.1]
[1761316627030,8.67851248,190.28,190.24,0.1]
[1761316627438,8.67851248,190.27,190.24,0.1]
[1761316627848,0.68,190.27,190.24,0.1]
[1761316628033,0.68,190.26,190.24,0.1]
[1761316628344,38.08,190.29,190.24,0.1]
[1761316628345,38.08,190.25,190.24,0.1]
[1761316629251,38.76,190.25,190.24,0.1]
[1761316629745,38.08,190.25,190.24,0.1]
[1761316630145,38.76,190.25,190.24,0.1]
[1761316630540,38.08,190.25,190.24,0.1]
[1761316631630,38.76,190.25,190.24,0.1]
[1761316631855,52.01475426,190.25,190.24,0.1]
[1761316632038,46.75851248,190.25,190.24,0.1]
[1761316632544,38.76,190.25,190.24,0.1]
[1761316633256,46.07851248,190.25,190.24,0.1]
[1761316633446,38.76,190.25,190.24,0.1]
[1761316633629,46.75851248,190.25,190.24,0.1]
[1761316633951,38.08,190.25,190.24,5.35651808]
[1761316634155,38.08,190.26,190.24,5.35651808]
[1761316634323,38.08,190.26,190.24,0.1]
[1761316634524,0.68,190.25,190.24,0.1]
[1761316634728,46.75851248,190.26,190.24,0.1]
[1761316635036,0.68,190.25,190.24,0.1]
[1761316635251,46.07851248,190.26,190.24,0.1]
[1761316635547,38.08,190.25,190.24,0.1]
[1761316637135,13.25420378,190.27,190.24,0.1]
[1761316637336,38.08,190.26,190.24,0.1]
[1761316637538,46.75851248,190.26,190.24,0.1]
[1761316638660,8.67851248,190.25,190.24,0.1]
[1761316638838,0.68,190.25,190.24,0.1]
[1761316639039,5.95221604,190.25,190.24,0.1]
[1761316639441,16.82869125,190.25,190.24,0.1]
[1761316639647,11.55647521,190.25,190.24,0.1]
[1761316639954,16.82869125,190.25,190.24,0.1]
[1761316640548,22.08493303,190.25,190.24,1e-08]
[1761316640873,33.75647521,190.22,190.21,0.1]
[1761316641075,77.10869125,190.22,190.21,0.1]
[1761316641239,34.42647521,190.22,190.21,0.1]
[1761316641438,22.88,190.22,190.21,0.1]
[1761316641633,60.96,190.22,190.21,0.1]
[1761316642139,66.90221604,190.22,190.21,0.1]
[1761316642552,83.03576201,190.22,190.21,0.1]
[1761316643561,72.1592868,190.22,190.21,0.1]
[1761316643765,83.03576201,190.22,190.21,0.1]
[1761316644484,33.75647521,190.19,190.18,0.1]
[1761316644651,10.87647521,190.14,190.06,0.1]
[1761316644848,5.27221604,190.09,190.06,0.1]
[1761316645061,5.27221604,190.07,190.06,0.1]
[1761316645249,38.08,190.07,190.06,0.1]
[1761316645446,49.96436598,190.19,190.06,0.1]
[1761316645762,10.87647521,190.14,190.06,6.03221604]
[1761316645966,38.08,190.13,190.06,6.03221604]
[1761316646365,43.35221604,190.13,190.07,0.66]
[1761316646672,38.08,190.12,190.06,0.1]
[1761316647179,38.08,190.12,190.06,10.63366151]
[1761316647352,38.08,190.12,190.06,5.36144547]
[1761316647561,38.08,190.12,190.06,10.63366151]
[1761316647758,38.08,190.12,190.06,5.36144547]
[1761316648077,38.08,190.12,190.06,24.44740243]
[1761316648249,38.08,190.12,190.06,19.17518639]
[1761316648453,38.08,190.12,190.06,24.44740243]
[1761316648871,38.08,190.11,190.08,5.27221604]
[1761316649089,38.08,190.11,190.07,5.93221604]
[1761316649250,38.08,190.11,190.07,0.66]
[1761316649578,38.08,190.11,190.09,5.27221604]
[1761316649875,38.08,190.12,190.09,5.27221604]
[1761316650173,38.08,190.12,190.1,0.66]
[1761316650372,38.08,190.12,190.1,5.93221604]
[1761316650578,38.08,190.14,190.12,5.25983589]
[1761316650788,28.15221604,190.18,190.12,10.53205193]
[1761316650789,22.88,190.18,190.12,10.53205193]
[1761316650965,38.08,190.17,190.13,5.93221604]
[1761316651168,38.08,190.17,190.12,18.40942562]
[1761316651169,38.08,190.17,190.06,0.1]
[1761316651357,10.87647521,190.2,190.1,0.66]
[1761316651559,43.35221604,190.19,190.12,5.27221604]
[1761316651763,5.27221604,190.18,190.11,5.27221604]
[1761316652267,5.27221604,190.18,190.11,5.93221604]
[1761316652463,38.75,190.19,190.12,5.27221604]
[1761316652662,44.02221604,190.19,190.13,5.25955924]
[1761316653078,38.75,190.19,190.13,5.25955924]
[1761316653265,38.75,190.19,190.13,18.40845736]
[1761316653601,39.02869125,190.2,190.08,22.88]
[1761316653774,28.15221604,190.16,190.09,5.93221604]
[1761316653977,38.08,190.15,190.09,0.66]
[1761316654170,43.35221604,190.15,190.08,18.42452656]
[1761316654369,0.67,190.14,190.07,11.19343559]
[1761316654572,0.67,190.14,190.08,5.27221604]
[1761316654875,0.67,190.14,190.09,5.260666]
[1761316655084,38.08,190.13,190.09,5.260666]
[1761316655281,38.08,190.13,190.09,5.920666]
[1761316655480,38.08,190.13,190.09,0.66]
[1761316655679,38.08,190.13,190.08,5.26080934]
[1761316655867,38.75,190.13,190.07,5.26117527]
[1761316656067,38.75,190.13,190.06,6.03221604]
[1761316656068,5.27221604,190.09,190.06,0.1]
[1761316656306,60.96,190.08,190.06,0.1]
[1761316656594,43.35221604,190.07,190.06,0.1]
[1761316656769,44.02221604,190.07,190.06,0.1]
[1761316657388,49.28343559,190.07,190.06,0.1]
[1761316657701,38.75,190.07,190.06,0.1]
[1761316658384,38.08,190.07,190.06,0.1]
[1761316658611,38.75,190.07,190.06,0.1]
[1761316658891,60.1599108,190.07,190.06,0.1]
[1761316659871,63.57638326,190.07,190.06,0.1]
[1761316660067,58.30416722,190.07,190.06,0.1]
[1761316660274,14.29294767,190.07,190.06,0.1]
[1761316660495,58.30416722,190.07,190.06,0.1]
[1761316660894,3.41647246,190.07,190.06,0.1]
[1761316661114,60.96,190.07,190.06,0.1]
[1761316661283,65.0496384,190.07,190.06,0.1]
[1761316661476,81.19832965,190.07,190.06,0.1]
[1761316662087,10.87647521,190.06,190.04,0.1]
[1761316662290,39.02869125,190.05,190.04,0.1]
[1761316662487,20.23832965,190.05,190.04,0.1]
[1761316662888,25.50010286,190.05,190.04,0.1]
[1761316663498,48.38010286,190.05,190.04,0.1]
[1761316663682,25.50010286,190.05,190.04,0.1]
[1761316664093,63.58010286,190.05,190.04,0.1]
[1761316664292,67.93643712,190.05,190.04,0.1]
[1761316664698,63.58010286,190.05,190.04,0.1]
[1761316664907,29.80241584,190.05,190.04,0.1]
[1761316665090,52.37611361,190.05,190.04,0.1]
[1761316665297,57.64832965,190.05,190.04,0.1]
[1761316665695,69.65185444,190.05,190.04,0.1]
[1761316665998,64.8796384,190.05,190.04,0.1]
[1761316666686,86.96010286,190.05,190.04,0.1]
[1761316666889,64.08010286,190.05,190.04,0.1]
[1761316667227,58.80788682,190.05,190.04,0.1]
[1761316667523,63.41010286,190.05,190.04,0.1]
[1761316667812,48.21010286,190.05,190.04,0.1]
[1761316668035,63.41010286,190.05,190.04,0.1]
[1761316668234,64.08010286,190.05,190.04,0.1]
[1761316668708,63.41010286,190.05,190.04,0.1]
[1761316669601,58.14832965,190.05,190.04,0.1]
[1761316669806,47.27185444,190.05,190.04,0.1]
[1761316670088,52.53362765,190.05,190.04,0.1]
[1761316670292,63.41010286,190.05,190.04,0.1]
[1761316671122,63.41010286,190.05,190.04,0.8]
[1761316671123,3.9196384,190.05,190.04,0.8]
[1761316671412,38.58,190.05,190.04,0.8]
[1761316671590,3.4196384,190.05,190.04,0.8]
[1761316671792,10.87647521,190.11,190.04,11.33426613]
[1761316671993,6.43998675,190.15,190.06,5.27221604]
[1761316671994,5.27221604,190.13,190.06,5.27221604]
[1761316672186,38.08,190.12,190.06,5.27221604]
[1761316672391,3.45035277,190.11,190.07,0.7]
[1761316672592,3.45035277,190.11,190.09,5.27221604]
[1761316672794,3.45035277,190.17,190.1,5.27221604]
[1761316673112,37.97998675,190.21,190.11,5.26011256]
[1761316673113,32.24,190.21,190.11,5.26011256]
[1761316673298,38.78,190.2,190.11,5.26011256]
[1761316673500,10.87647521,190.19,190.12,0.7]
[1761316673817,5.27221604,190.18,190.12,0.7]
[1761316673991,38.08,190.17,190.12,0.7]
[1761316674189,31.54,190.21,190.12,0.7]
[1761316674414,16.14869125,190.2,190.13,5.27221604]
[1761316674614,10.87647521,190.2,190.14,5.27221604]
[1761316674788,31.54,190.21,190.16,5.27221604]
[1761316674990,38.08,190.2,190.17,5.95845296]
[1761316675201,5.27221604,190.24,190.17,5.95845296]
[1761316675393,38.08,190.23,190.18,5.97221604]
[1761316675586,60.96,190.23,190.18,0.7]
[1761316675789,5.00433472,190.29,190.2,5.27221604]
[1761316675992,38.08,190.28,190.22,5.27221604]
[1761316676193,28.15221604,190.24,190.19,0.7]
[1761316676387,28.15221604,190.24,190.1,10.87647521]
[1761316676388,5.27221604,190.21,190.16,0.7]
[1761316677119,5.27221604,190.19,190.15,5.2589735]
[1761316677301,38.06,190.18,190.15,5.9489735]
[1761316677506,38.06,190.17,190.16,0.69]
[1761316679425,38.06,190.17,190.13,5.94953957]
[1761316679623,38.06,190.17,190.14,0.69]
[1761316680524,5.27221604,190.16,190.1,0.69]
[1761316680704,5.27221604,190.16,190.02,0.1]
[1761316680705,5.27221604,190.13,190.07,0.69]
[1761316680902,5.27221604,190.13,190.05,5.26177321]
[1761316680903,5.27221604,190.1,190.05,5.26177321]
[1761316681103,5.27221604,190.06,190.04,0.1]
[1761316681332,43.33221604,190.05,190.04,0.1]
[1761316681506,38.06,190.05,190.04,0.1]
[1761316682128,38.06,190.05,190.04,0.79]
[1761316682333,77.08869125,190.05,190.04,0.1]
[1761316682542,54.86869125,190.05,190.04,0.1]
[1761316682750,54.86869125,190.05,190.02,0.1]
[1761316682751,22.88,190.03,190.02,0.1]
[1761316683033,44.29101825,190.03,190.02,0.1]
[1761316683242,71.79647521,190.03,190.02,0.1]
[1761316683403,77.06869125,190.03,190.02,0.1]
[1761316683919,82.33101825,190.03,190.02,0.1]
[1761316684110,82.99101825,190.03,190.02,0.1]
[1761316684305,22.88,190.03,190.02,0.79]
[1761316684511,38.06,190.03,190.02,6.05260393]
[1761316684837,38.06,190.03,190.02,11.32481997]
[1761316685329,38.06,190.03,190.02,6.05260393]
[1761316685537,5.27221604,190.11,190.02,24.48132981]
[1761316685736,38.06,190.1,190.03,0.69]
[1761316686033,38.06,190.1,190.04,5.27221604]
[1761316686329,5.27221604,190.06,190.02,0.1]
[1761316686532,38.06,190.05,190.02,0.1]
[1761316686734,22.88,190.03,190.02,0.1]
[1761316686932,28.15221604,190.03,190.02,0.1]
[1761316687317,34.07454304,190.03,190.02,0.1]
[1761316687712,22.88,190.03,190.02,0.1]
[1761316688511,44.95101825,190.03,190.02,0.1]
[1761316688706,28.15221604,190.03,190.02,0.1]
[1761316688911,34.07454304,190.03,190.02,0.1]
[1761316689112,77.73880221,190.03,190.02,0.1]
[1761316689310,83.01101825,190.03,190.02,0.1]
[1761316690038,82.35101825,190.03,190.02,0.1]
[1761316690338,83.01101825,190.03,190.02,0.1]
[1761316691208,77.74869125,190.03,190.02,0.1]
[1761316692112,83.01101825,190.03,190.02,0.1]
[1761316692519,44.29101825,190.03,190.02,0.1]
[1761316692720,83.01101825,190.03,190.02,0.1]
[1761316692921,33.75647521,190.03,190.02,0.1]
[1761316693116,60.94,190.03,190.02,0.1]
[1761316693322,66.21221604,190.03,190.02,0.1]
[1761316693816,60.94,190.03,190.02,0.1]
[1761316694343,66.202327,190.03,190.02,0.1]
[1761316694526,66.21221604,190.03,190.02,0.1]
[1761316694715,71.47454304,190.03,190.02,0.1]
[1761316695138,66.202327,190.03,190.02,0.1]
[1761316695357,71.47454304,190.03,190.02,0.1]
[1761316695655,60.94,190.03,190.02,0.1]
[1761316695829,66.202327,190.03,190.02,0.1]
[1761316696026,22.88,190.03,190.02,0.79]
[1761316696238,60.94,190.03,190.02,0.1]
[1761316696538,66.21221604,190.03,190.02,0.1]
[1761316696734,60.94,190.03,190.02,0.1]
[1761316697830,60.94,190.03,190.02,0.79]
[1761316698149,38.06,190.03,190.02,0.1]
[1761316698520,22.88,190.06,190.02,0.1]
[1761316698746,38.06,190.05,190.02,0.79]
[1761316698928,5.27221604,190.07,190.02,0.79]
[1761316699126,38.06,190.06,190.02,6.05260047]
[1761316699321,38.06,190.06,190.02,11.32481651]
[1761316699523,38.06,190.06,190.03,0.71]
[1761316700453,5.27221604,190.05,190.03,0.71]
[1761316700625,43.3215081,190.06,190.03,0.71]
[1761316700826,38.06,190.06,190.03,0.71]
[1761316701223,38.06,190.06,190.03,5.97232641]
[1761316701439,38.04,190.05,190.03,5.97232641]
[1761316701623,38.04,190.05,190.04,0.71]
[1761316701850,8.02580895,190.1,190.04,8.73580895]
[1761316702025,0.7,190.15,190.04,8.73580895]
[1761316702026,13.28567085,190.12,190.06,8.02580895]
[1761316702224,38.04,190.11,190.07,8.73580895]
[1761316702429,38.04,190.1,190.07,8.73580895]
[1761316702647,38.04,190.09,190.08,0.71]
[1761316703023,22.88,190.14,190.08,0.71]
[1761316703227,8.02580895,190.12,190.08,0.71]
[1761316703432,8.02580895,190.09,190.04,5.97195896]
[1761316703631,38.04,190.08,190.04,5.97195896]
[1761316703950,38.04,190.08,190.05,0.71]
[1761316704140,38.04,190.07,190.05,8.73580895]
[1761316704450,38.04,190.07,190.06,8.02580895]
[1761316704626,38.04,190.07,190.05,0.71]
[1761316705245,38.04,190.07,190.05,5.97159925]
[1761316706138,38.04,190.07,190.06,0.71]
[1761316707234,38.04,190.07,190.06,8.73580895]
[1761316707543,38.04,190.07,190.06,13.99730531]
[1761316708445,38.04,190.07,190.06,5.97149636]
[1761316708647,38.04,190.07,190.06,13.99730531]
[1761316708946,38.04,190.09,190.06,13.99730531]
[1761316709126,38.04,190.09,190.08,8.02580895]
[1761316709321,38.04,190.09,190.08,13.28675171]
[1761316709533,38.04,190.09,190.08,13.99675171]
[1761316710529,38.04,190.09,190.08,5.97094276]
[1761316710726,38.04,190.09,190.08,13.99675171]
[1761316711532,38.02,190.11,190.08,27.14910861]
[1761316711733,38.02,190.11,190.09,8.73580895]
[1761316711943,38.02,190.11,190.1,0.71]
[1761316712842,5.2584876,190.17,190.1,13.99619821]
[1761316713040,38.02,190.16,190.11,8.02580895]